bitfinex/quotes_BTCUSD_20240717
["timestamp","ask_amount","ask_price","bid_price","bid_amount"]
[1721240998226,0.01219361,64574.0,64573.0,3.23673435]
[1721240998739,0.01219361,64574.0,64573.0,3.32925388]
[1721240998940,0.01219361,64574.0,64573.0,3.14834575]
[1721240998941,0.15349361,64574.0,64573.0,3.14834575]
[1721240999139,0.15349361,64574.0,64573.0,3.1724691]
[1721240999599,0.15349361,64574.0,64573.0,3.23674752]
[1721241000690,0.15349361,64574.0,64573.0,3.30612352]
[1721241001136,0.08799361,64574.0,64573.0,2.9628265]
[1721241001346,0.08799361,64574.0,64573.0,3.3061103]
[1721241001570,0.08799361,64574.0,64573.0,3.23677706]
[1721241001786,0.01219361,64574.0,64573.0,3.23677706]
[1721241002417,0.01219361,64574.0,64573.0,3.35233246]
[1721241002600,0.01219361,64574.0,64573.0,3.35230732]
[1721241003956,0.01219361,64574.0,64573.0,3.00676955]
[1721241004274,0.09479361,64574.0,64573.0,3.2367414]
[1721241004477,0.15839361,64574.0,64573.0,3.32920431]
[1721241004699,0.15839361,64574.0,64573.0,3.23677422]
[1721241005660,0.15839361,64574.0,64573.0,3.23677441]
[1721241007081,0.15839361,64574.0,64573.0,2.70404135]
[1721241007285,0.15839361,64574.0,64573.0,0.34938782]
[1721241007585,0.62297661,64574.0,64573.0,0.15655513]
[1721241007724,0.15839361,64574.0,64573.0,0.15655513]
[1721241008524,0.15839361,64574.0,64573.0,0.14255513]
[1721241008798,0.15839361,64574.0,64573.0,0.12855513]
[1721241009011,0.15939361,64574.0,64573.0,0.14955513]
[1721241009365,0.15839361,64574.0,64573.0,0.12855513]
[1721241010226,0.15839361,64574.0,64573.0,0.13458694]
[1721241010434,0.15839361,64574.0,64573.0,0.28896868]
[1721241010807,0.15839361,64574.0,64573.0,0.29496868]
[1721241011860,0.15839361,64574.0,64573.0,0.14058694]
[1721241012677,0.15839361,64574.0,64573.0,0.012]
[1721241013010,0.14839361,64574.0,64573.0,0.012]
[1721241017475,0.15768716,64574.0,64573.0,0.012]
[1721241018118,0.15754696,64574.0,64573.0,0.012]
[1721241021571,0.31485012,64574.0,64573.0,0.012]
[1721241021739,0.31240796,64574.0,64573.0,0.012]
[1721241021943,0.93185196,64574.0,64573.0,0.012]
[1721241022342,0.62212996,64574.0,64573.0,0.012]
[1721241023853,0.15754696,64574.0,64573.0,0.012]
[1721241024795,0.15754696,64574.0,64573.0,0.012913]
[1721241026035,0.15754696,64574.0,64573.0,0.16729474]
[1721241026240,0.01134696,64574.0,64573.0,0.63188374]
[1721241026557,0.00205341,64574.0,64573.0,0.84886579]
[1721241029077,0.00205341,64574.0,64573.0,0.84885737]
[1721241029256,0.00205341,64574.0,64573.0,0.76045737]
[1721241030754,0.00205341,64574.0,64573.0,0.84885737]
[1721241031842,0.00205341,64574.0,64573.0,0.76045737]
[1721241032207,0.00205341,64574.0,64573.0,0.63188374]
[1721241032411,0.00205341,64574.0,64573.0,0.76045763]
[1721241032613,0.00205341,64574.0,64573.0,0.45073222]
[1721241033195,0.00205341,64574.0,64573.0,2.46211022]
[1721241033390,0.00205341,64574.0,64573.0,1.82794844]
[1721241033985,0.00205341,64574.0,64573.0,2.59794844]
[1721241034190,0.00205341,64574.0,64573.0,3.36797683]
[1721241034338,0.00205341,64574.0,64573.0,3.32194642]
[1721241034562,0.00205341,64574.0,64573.0,3.39099204]
[1721241034896,0.00205341,64574.0,64573.0,5.39488929]
[1721241035101,0.00205341,64574.0,64573.0,5.38288929]
[1721241035430,0.00305341,64574.0,64573.0,4.78787666]
[1721241035763,0.00305341,64574.0,64573.0,4.49947666]
[1721241035962,0.00305341,64574.0,64573.0,2.71388191]
[1721241036763,0.00305341,64574.0,64573.0,2.48168191]
[1721241036966,0.00305341,64574.0,64573.0,2.57008191]
[1721241038174,0.00305341,64574.0,64573.0,2.24873574]
[1721241038378,0.00305341,64574.0,64573.0,2.570107]
[1721241038878,0.00305341,64574.0,64573.0,1.800107]
[1721241040027,0.00305341,64574.0,64573.0,3.119033]
[1721241040227,0.00305341,64574.0,64573.0,3.22931712]
[1721241040685,0.00305341,64574.0,64573.0,3.18330273]
[1721241041426,0.00305341,64574.0,64573.0,4.61900244]
[1721241041673,0.00305341,64574.0,64573.0,4.72924293]
[1721241042005,0.00305341,64574.0,64573.0,4.7292387]
[1721241043198,0.00305341,64574.0,64573.0,4.72923582]
[1721241043397,0.00305341,64574.0,64573.0,4.66496768]
[1721241044572,0.00305341,64574.0,64573.0,4.53642234]
[1721241044772,0.00305341,64574.0,64573.0,4.66495862]
[1721241044980,0.00305341,64574.0,64573.0,2.80927644]
[1721241045196,0.00305341,64574.0,64573.0,3.11900244]
[1721241045399,0.00305341,64574.0,64573.0,2.61647202]
[1721241046770,0.00305341,64574.0,64573.0,2.92619802]
[1721241047127,0.00305341,64574.0,64573.0,2.92369802]
[1721241047332,0.00305341,64574.0,64573.0,2.61397202]
[1721241047797,0.00305341,64574.0,64573.0,2.97369802]
[1721241047981,0.00305341,64574.0,64573.0,3.16650244]
[1721241050275,0.00305341,64574.0,64573.0,4.79920244]
[1721241050722,0.00305341,64574.0,64573.0,4.42786174]
[1721241051018,0.00305341,64574.0,64573.0,4.74920979]
[1721241051242,0.00305341,64574.0,64573.0,4.42786174]
[1721241051465,0.00305341,64574.0,64573.0,4.74921162]
[1721241052270,0.00305341,64574.0,64573.0,4.61001162]
[1721241052587,0.00305341,64574.0,64573.0,2.80028562]
[1721241053957,0.00305341,64574.0,64573.0,2.80030527]
[1721241056854,0.00305341,64574.0,64573.0,2.80121827]
[1721241057050,0.00305341,64574.0,64573.0,2.80122209]
[1721241059562,0.00305341,64574.0,64573.0,1.83767009]
[1721241059563,0.06455341,64574.0,64573.0,1.83767009]
[1721241059786,0.06455341,64574.0,64573.0,0.46512008]
[1721241060144,0.14365341,64574.0,64573.0,0.46514073]
[1721241060576,0.14265341,64574.0,64573.0,0.29627773]
[1721241060858,0.14265341,64574.0,64573.0,0.45114073]
[1721241061057,0.14265341,64574.0,64573.0,0.76086673]
[1721241061190,0.14265341,64574.0,64573.0,0.77486673]
[1721241061389,0.14265341,64574.0,64573.0,0.97219536]
[1721241061712,0.14265341,64574.0,64573.0,0.74686673]
[1721241061911,0.14265341,64574.0,64573.0,0.75686282]
[1721241062513,0.00205341,64574.0,64573.0,1.24774874]
[1721241062849,0.00205341,64574.0,64573.0,1.39931887]
[1721241063236,0.00205341,64574.0,64573.0,1.38931887]
[1721241063737,0.00205341,64574.0,64573.0,1.40331887]
[1721241064107,0.00205341,64574.0,64573.0,1.38931887]
[1721241064301,0.00205341,64574.0,64573.0,1.41731887]
[1721241064501,0.00205341,64574.0,64573.0,1.40331887]
[1721241064886,0.00205341,64574.0,64573.0,1.41731887]
[1721241065059,0.00205341,64574.0,64573.0,1.40331887]
[1721241065481,0.00205341,64574.0,64573.0,1.41731887]
[1721241065661,0.00205341,64574.0,64573.0,1.41731603]
[1721241066244,0.00205341,64574.0,64573.0,1.40293173]
[1721241066681,0.00205341,64574.0,64573.0,1.41693173]
[1721241067081,0.00205341,64574.0,64573.0,1.40293173]
[1721241067487,0.00205341,64574.0,64573.0,1.41693173]
[1721241069319,0.00205341,64574.0,64573.0,1.41693127]
[1721241070323,0.00205341,64574.0,64573.0,1.50543127]
[1721241070538,0.00205341,64574.0,64573.0,1.50542626]
[1721241070937,0.00205341,64574.0,64573.0,1.56822626]
[1721241071321,0.00205341,64574.0,64573.0,1.58670045]
[1721241071527,0.00205341,64574.0,64573.0,2.41670045]
[1721241071728,0.00205341,64574.0,64573.0,2.98309499]
[1721241072075,0.00205341,64574.0,64573.0,3.02911399]
[1721241072298,0.00205341,64574.0,64573.0,3.05212341]
[1721241072497,1e-08,64574.0,64573.0,4.89536393]
[1721241073279,1e-08,64574.0,64573.0,3.02912081]
[1721241073488,1e-08,64574.0,64573.0,3.0291244]
[1721241073665,1e-08,64574.0,64573.0,4.48309499]
[1721241073865,1e-08,64574.0,64573.0,4.52912532]
[1721241074514,1e-08,64574.0,64573.0,2.98309499]
[1721241075039,1e-08,64574.0,64573.0,5.18606539]
[1721241075238,1e-08,64574.0,64573.0,5.34667896]
[1721241075815,1e-08,64574.0,64573.0,5.34668086]
[1721241077564,1e-08,64574.0,64573.0,5.29668086]
[1721241077769,1e-08,64574.0,64573.0,5.41175323]
[1721241077966,1e-08,64574.0,64573.0,5.29668086]
[1721241078294,1e-08,64574.0,64573.0,5.13600072]
[1721241078690,1e-08,64574.0,64573.0,5.05829076]
[1721241078847,1e-08,64574.0,64573.0,5.25109824]
[1721241079890,1e-08,64574.0,64573.0,5.25109957]
[1721241081407,1e-08,64574.0,64573.0,4.92975377]
[1721241081561,1e-08,64574.0,64573.0,4.94134142]
[1721241081769,1e-08,64574.0,64573.0,4.82627058]
[1721241082086,1e-08,64574.0,64573.0,4.70627058]
[1721241082288,1e-08,64574.0,64573.0,3.25117058]
[1721241082694,1e-08,64574.0,64573.0,3.3432358]
[1721241083104,1e-08,64574.0,64573.0,3.1432358]
[1721241083311,1e-08,64574.0,64573.0,3.25117058]
[1721241083691,1e-08,64574.0,64573.0,2.65117058]
[1721241083893,1e-08,64574.0,64573.0,2.72022297]
[1721241084091,1e-08,64574.0,64573.0,3.53022297]
[1721241084309,1e-08,64574.0,64573.0,3.5302218]
[1721241084512,1e-08,64574.0,64573.0,3.53024755]
[1721241084701,1e-08,64574.0,64573.0,3.46119872]
[1721241085258,1e-08,64574.0,64573.0,3.55325535]
[1721241085390,1e-08,64574.0,64573.0,3.46119872]
[1721241087012,1e-08,64574.0,64573.0,3.26119872]
[1721241087218,1e-08,64574.0,64573.0,2.79659044]
[1721241087457,1e-08,64574.0,64573.0,3.53025479]
[1721241087765,1e-08,64574.0,64573.0,2.79659044]
[1721241088367,1e-08,64574.0,64573.0,3.53025479]
[1721241090413,1e-08,64574.0,64573.0,3.11795269]
[1721241090609,1e-08,64574.0,64573.0,2.59659044]
[1721241091034,1e-08,64574.0,64573.0,2.79659044]
[1721241091244,1e-08,64574.0,64573.0,1.98659044]
[1721241091453,1e-08,64574.0,64573.0,2.84659044]
[1721241093016,1e-08,64574.0,64573.0,1.89809044]
[1721241093223,1e-08,64574.0,64573.0,1.67686444]
[1721241093997,1e-08,64574.0,64573.0,1.47686444]
[1721241094199,0.06280001,64574.0,64573.0,1.58836444]
[1721241094414,0.06280001,64574.0,64573.0,1.67686444]
[1721241095036,1e-08,64574.0,64573.0,1.67686444]
[1721241095837,1e-08,64574.0,64573.0,1.98659044]
[1721241096223,1e-08,64574.0,64573.0,3.48659044]
[1721241096973,1e-08,64574.0,64573.0,1.98659044]
[1721241098491,1e-08,64574.0,64573.0,1.97259044]
[1721241098910,1e-08,64574.0,64573.0,1.98659044]
[1721241099306,1e-08,64574.0,64573.0,1.97259044]
[1721241100068,1e-08,64574.0,64573.0,1.98659044]
[1721241100286,1e-08,64574.0,64573.0,1.97259044]
[1721241100737,1e-08,64574.0,64573.0,1.98659044]
[1721241100968,1e-08,64574.0,64573.0,1.95859044]
[1721241101205,1e-08,64574.0,64573.0,1.97259044]
[1721241101653,1e-08,64574.0,64573.0,1.66286444]
[1721241101821,1e-08,64574.0,64573.0,1.64886444]
[1721241102027,1e-08,64574.0,64573.0,1.66286444]
[1721241102603,1e-08,64574.0,64573.0,1.35313844]
[1721241102804,1e-08,64574.0,64573.0,1.36713844]
[1721241103363,0.14650001,64574.0,64573.0,1.16713844]
[1721241104798,0.14650001,64574.0,64573.0,1.14413844]
[1721241104960,0.14650001,64574.0,64573.0,1.16713844]
[1721241110632,0.14650001,64574.0,64573.0,1.53459124]
[1721241111539,0.14650001,64574.0,64573.0,1.53460021]
[1721241112911,1e-08,64574.0,64573.0,1.84432621]
[1721241113152,1e-08,64574.0,64573.0,1.86735986]
[1721241113561,1e-08,64574.0,64573.0,2.21063718]
[1721241114652,1e-08,64574.0,64573.0,1.79824766]
[1721241114857,1e-08,64574.0,64573.0,2.14152197]
[1721241115091,1e-08,64574.0,64573.0,2.14152203]
[1721241115687,1e-08,64574.0,64573.0,2.86152203]
[1721241116144,1e-08,64574.0,64573.0,2.66869208]
[1721241116365,1e-08,64574.0,64573.0,2.1415221]
[1721241117511,1e-08,64574.0,64573.0,2.8715221]
[1721241117965,1e-08,64574.0,64573.0,2.87152185]
[1721241118516,1e-08,64574.0,64573.0,2.96369537]
[1721241118713,1e-08,64574.0,64573.0,2.23369537]
[1721241119217,1e-08,64574.0,64573.0,2.40579535]
[1721241119501,1e-08,64574.0,64573.0,2.53169535]
[1721241119802,1e-08,64574.0,64573.0,3.14169535]
[1721241119953,1e-08,64574.0,64573.0,4.64169535]
[1721241120155,1e-08,64574.0,64573.0,4.59169535]
[1721241120365,1e-08,64574.0,64573.0,3.98169535]
[1721241120516,1e-08,64574.0,64573.0,4.14237624]
[1721241120722,1e-08,64574.0,64573.0,4.14232717]
[1721241120973,1e-08,64574.0,64573.0,2.64232717]
[1721241121169,1e-08,64574.0,64573.0,3.82205317]
[1721241121372,1e-08,64574.0,64573.0,3.88625317]
[1721241121605,1e-08,64574.0,64573.0,5.38625317]
[1721241123282,1e-08,64574.0,64573.0,5.07915611]
[1721241123474,1e-08,64574.0,64573.0,5.38623875]
[1721241123718,1e-08,64574.0,64573.0,5.19341925]
[1721241124049,1e-08,64574.0,64573.0,5.38622892]
[1721241124384,0.0189947,64576.0,64575.0,1.585226]
[1721241124563,0.0189947,64576.0,64575.0,3.35214622]
[1721241124740,0.0189947,64576.0,64575.0,3.49035666]
[1721241124987,0.0189947,64576.0,64575.0,4.99035666]
[1721241125744,0.0189947,64576.0,64575.0,5.00435666]
[1721241126148,0.0189947,64576.0,64575.0,4.12328863]
[1721241126509,0.0189947,64576.0,64575.0,4.88010394]
[1721241126708,0.0189947,64576.0,64575.0,5.00435286]
[1721241127010,0.0189947,64576.0,64575.0,5.01835286]
[1721241127378,0.0189947,64576.0,64575.0,4.88010394]
[1721241130299,0.0189947,64576.0,64575.0,4.96860394]
[1721241131092,0.0189947,64576.0,64575.0,4.96858844]
[1721241134913,0.0189947,64576.0,64575.0,4.96858844]
[1721241135725,0.0189947,64576.0,64575.0,4.96858222]
[1721241138725,0.0189947,64576.0,64575.0,4.72124966]
[1721241138952,0.0189947,64576.0,64575.0,5.10683037]
[1721241139359,1e-08,64576.0,64575.0,4.96855755]
[1721241141604,0.07724556,64579.0,64578.0,2.093659]
[1721241141805,0.07724556,64579.0,64578.0,4.19899055]
[1721241142024,0.07724556,64579.0,64578.0,4.03832645]
[1721241142204,0.07724556,64579.0,64578.0,4.15354242]
[1721241142418,0.07724556,64579.0,64578.0,3.30954074]
[1721241142619,0.07724556,64579.0,64578.0,4.1535658]
[1721241142874,0.07724556,64579.0,64578.0,4.1675658]
[1721241143073,0.07724556,64579.0,64578.0,4.16756441]
[1721241143274,0.07724556,64579.0,64578.0,4.18156441]
[1721241144037,0.07724556,64579.0,64578.0,3.25664783]
[1721241144238,0.07724556,64579.0,64578.0,3.34883099]
[1721241144440,0.07724556,64579.0,64578.0,1.97980952]
[1721241144650,0.07724556,64579.0,64578.0,2.0452657]
[1721241145036,0.07724556,64579.0,64578.0,1.67783874]
[1721241145237,0.07724556,64579.0,64578.0,1.99920747]
[1721241145436,0.22434556,64579.0,64578.0,1.91070747]
[1721241145636,0.22434556,64579.0,64578.0,2.19920747]
[1721241145838,0.22434556,64579.0,64578.0,2.26835952]
[1721241146055,0.22434556,64579.0,64578.0,2.19920747]
[1721241146250,0.22434556,64579.0,64578.0,2.24530901]
[1721241146455,0.22434556,64579.0,64578.0,2.19920747]
[1721241146653,0.22434556,64579.0,64578.0,1.99920747]
[1721241146898,0.22434556,64579.0,64578.0,1.91070747]
[1721241147305,0.22434556,64579.0,64578.0,1.99920747]
[1721241150773,0.22434556,64579.0,64578.0,1.67783874]
[1721241150911,0.22434556,64579.0,64578.0,1.99920847]
[1721241151111,0.22517556,64579.0,64578.0,1.99920847]
[1721241151526,0.22517556,64579.0,64578.0,2.0453356]
[1721241152090,0.22517556,64579.0,64578.0,2.04537586]
[1721241153305,0.22517556,64579.0,64578.0,1.99920847]
[1721241153502,0.22517556,64579.0,64578.0,2.04536769]
[1721241153503,0.07807556,64579.0,64578.0,2.04536769]
[1721241153705,0.07807556,64579.0,64578.0,2.06845956]
[1721241153911,0.07807556,64579.0,64578.0,2.41171013]
[1721241154087,0.07807556,64579.0,64578.0,2.406731]
[1721241154466,0.07807556,64579.0,64578.0,2.52214949]
[1721241154667,0.07807556,64579.0,64578.0,2.52204022]
[1721241155080,0.07807556,64579.0,64578.0,2.58404022]
[1721241155482,0.07807556,64579.0,64578.0,2.46867008]
[1721241155692,0.07807556,64579.0,64578.0,3.68757208]
[1721241156111,0.07807556,64579.0,64578.0,3.80294222]
[1721241156415,0.07807556,64579.0,64578.0,3.68757208]
[1721241157910,0.07807556,64579.0,64578.0,3.68758324]
[1721241158510,0.07807556,64579.0,64578.0,2.97295338]
[1721241158945,0.07807556,64579.0,64578.0,3.74295338]
[1721241160392,0.07807556,64579.0,64578.0,3.62758324]
[1721241160936,0.07807556,64579.0,64578.0,3.30623606]
[1721241161047,0.07807556,64579.0,64578.0,3.6275849]
[1721241161452,0.07807556,64579.0,64578.0,3.6275841]
[1721241162665,0.07807556,64579.0,64578.0,3.62758419]
[1721241164069,0.07807556,64579.0,64578.0,3.56331556]
[1721241164277,0.07807556,64579.0,64578.0,3.62758361]
[1721241166572,0.07807556,64579.0,64578.0,2.38018161]
[1721241166768,0.07807556,64579.0,64578.0,2.46868161]
[1721241167011,0.07807556,64579.0,64578.0,2.40441307]
[1721241167143,0.07807556,64579.0,64578.0,3.23677664]
[1721241167350,0.07807556,64579.0,64578.0,3.14445421]
[1721241167561,0.07807556,64579.0,64578.0,2.40445421]
[1721241170441,0.07807556,64579.0,64578.0,2.08309063]
[1721241170639,0.07807556,64579.0,64578.0,2.49681914]
[1721241170840,0.07807556,64579.0,64578.0,1.68488863]
[1721241170841,0.22477556,64579.0,64578.0,1.68488863]
[1721241171047,0.22477556,64579.0,64578.0,2.16404131]
[1721241172042,0.22477556,64579.0,64578.0,1.31108523]
[1721241172246,0.22477556,64579.0,64578.0,0.31093084]
[1721241172454,0.22477556,64579.0,64578.0,0.1565491]
[1721241173012,0.22477556,64579.0,64578.0,0.1425491]
[1721241173424,0.22477556,64579.0,64578.0,0.1285491]
[1721241173639,0.07807556,64579.0,64578.0,0.13457204]
[1721241173837,0.07807556,64579.0,64578.0,0.14557204]
[1721241174069,0.07807556,64579.0,64578.0,0.13957204]
[1721241174322,0.21767556,64579.0,64578.0,0.13457204]
[1721241174700,0.21767556,64579.0,64578.0,0.14257204]
[1721241175743,0.21767556,64579.0,64578.0,0.13657204]
[1721241175899,0.21767556,64579.0,64578.0,0.14457204]
[1721241176707,0.21767556,64579.0,64578.0,0.016]
[1721241176980,0.21767556,64579.0,64578.0,0.14456862]
[1721241179982,0.21767556,64579.0,64578.0,0.016]
[1721241180144,0.21767556,64579.0,64578.0,0.14456862]
[1721241180343,0.21767556,64579.0,64578.0,0.016]
[1721241180541,0.21767556,64579.0,64578.0,0.14456862]
[1721241181582,0.21767556,64579.0,64578.0,0.14456922]
[1721241182415,0.21767556,64579.0,64578.0,0.14456931]
[1721241183308,0.83707156,64579.0,64578.0,0.14456931]
[1721241183509,1.44011856,64579.0,64578.0,0.016]
[1721241184779,1.44011856,64579.0,64578.0,0.008913]
[1721241185742,1.39011856,64579.0,64578.0,0.008913]
[1721241185961,1.39011856,64579.0,64578.0,0.000913]
[1721241187381,1.44011856,64579.0,64578.0,0.000913]
[1721241190482,1.74981656,64579.0,64578.0,0.000913]
[1721241191041,1.74981656,64579.0,64574.0,0.000913]
[1721241191042,0.05,64575.0,64574.0,0.000913]
[1721241191242,1.83590774,64575.0,64574.0,0.000913]
[1721241191647,1.93590774,64575.0,64574.0,0.000913]
[1721241192260,1.93590774,64575.0,64554.0,0.000913]
[1721241192261,0.916532,64555.0,64554.0,0.000913]
[1721241192462,1.055032,64555.0,64554.0,0.000913]
[1721241192664,1.364845,64555.0,64554.0,0.000913]
[1721241193544,1.364845,64555.0,64554.0,0.007913]
[1721241194134,1.364845,64555.0,64554.0,0.014913]
[1721241194465,1.82903974,64555.0,64554.0,0.014913]
[1721241194668,1.92903974,64555.0,64554.0,0.014913]
[1721241195225,1.92903974,64555.0,64554.0,0.007913]
[1721241195607,1.93003974,64555.0,64554.0,0.007913]
[1721241195955,1.93003974,64555.0,64554.0,0.000913]
[1721241195956,1.465845,64555.0,64554.0,0.000913]
[1721241196106,1.467845,64555.0,64554.0,0.000913]
[1721241196309,1.379345,64555.0,64554.0,0.000913]
[1721241199286,1.53372674,64555.0,64554.0,0.000913]
[1721241199631,1.84353974,64555.0,64554.0,0.000913]
[1721241199819,1.99788931,64555.0,64554.0,0.000913]
[1721241200108,2.30770231,64555.0,64554.0,0.000913]
[1721241200461,1.99788931,64555.0,64554.0,0.000913]
[1721241200840,1.99788931,64555.0,64554.0,0.001913]
[1721241200841,1.99988931,64555.0,64554.0,0.001913]
[1721241201046,1.99688931,64555.0,64554.0,0.001913]
[1721241201246,2.00588931,64555.0,64554.0,0.002913]
[1721241201532,2.21838931,64555.0,64554.0,0.001913]
[1721241201707,2.22738931,64555.0,64554.0,0.002913]
[1721241202088,2.07303974,64555.0,64554.0,0.002913]
[1721241202293,2.07103974,64555.0,64554.0,0.001913]
[1721241202894,2.07303974,64555.0,64554.0,0.002913]
[1721241203854,1.027532,64555.0,64554.0,0.002913]
[1721241204211,0.407906,64555.0,64554.0,0.002913]
[1721241204987,0.717719,64555.0,64554.0,0.002913]
[1721241205332,1.066532,64555.0,64554.0,0.000913]
[1721241205555,1.027532,64555.0,64554.0,0.002913]
[1721241206443,1.025532,64555.0,64554.0,0.001913]
[1721241206775,1.027532,64555.0,64554.0,0.002913]
[1721241211044,1.077532,64555.0,64554.0,0.002913]
[1721241211252,1.54172674,64555.0,64554.0,0.002913]
[1721241211570,1.76322674,64555.0,64554.0,0.002913]
[1721241214942,2.07303974,64555.0,64554.0,0.002913]
[1721241215084,0.154941,64541.0,64538.0,0.05735159]
[1721241215286,0.002794,64540.0,64539.0,0.12865466]
[1721241215507,0.467621,64540.0,64539.0,0.12865466]
[1721241215757,0.777506,64540.0,64539.0,0.12865466]
[1721241215950,0.774712,64540.0,64539.0,0.12865466]
[1721241216709,0.774725,64539.0,64538.0,0.05735159]
[1721241216893,0.774725,64539.0,64538.0,0.1860186]
[1721241217098,0.774725,64539.0,64538.0,0.18601847]
[1721241217305,0.154944,64540.0,64538.0,0.18601847]
[1721241217507,0.154944,64540.0,64539.0,0.13466688]
[1721241217711,0.529329,64540.0,64539.0,0.12866688]
[1721241217946,1.199099,64540.0,64539.0,0.12866688]
[1721241218323,1.282299,64540.0,64539.0,0.13566688]
[1721241218491,1.282299,64540.0,64539.0,0.007]
[1721241218646,1.087409,64539.0,64538.0,0.05735159]
[1721241218850,2.12183631,64539.0,64538.0,0.05735159]
[1721241219054,2.22183631,64539.0,64538.0,0.05735159]
[1721241219267,1.91194631,64539.0,64538.0,0.05735159]
[1721241219892,1.91594631,64539.0,64538.0,0.05735159]
[1721241220294,1.76159674,64539.0,64538.0,0.05735159]
[1721241220672,2.07148674,64539.0,64538.0,0.05735159]
[1721241220874,1.032825,64539.0,64538.0,0.05835159]
[1721241221074,1.032825,64539.0,64538.0,0.18702767]
[1721241221075,0.658335,64539.0,64538.0,0.18702767]
[1721241221273,0.575835,64539.0,64538.0,0.18702767]
[1721241221671,0.885725,64539.0,64538.0,0.18702767]
[1721241221872,1.89121754,64539.0,64538.0,0.18702767]
[1721241222074,1.89121754,64539.0,64538.0,0.05835159]
[1721241222306,2.20110754,64539.0,64538.0,0.05835159]
[1721241222498,2.20110754,64539.0,64538.0,0.04011671]
[1721241222704,1.271997,64528.0,64527.0,0.1]
[1721241222907,1.271997,64528.0,64519.0,0.000913]
[1721241222908,0.96614,64521.0,64519.0,0.000913]
[1721241223075,0.96614,64521.0,64520.0,1.12870522]
[1721241223076,1.75199774,64521.0,64520.0,1.12870522]
[1721241223287,1.75199774,64521.0,64520.0,1.0]
[1721241224115,1.75599774,64521.0,64520.0,1.0]
[1721241224519,1.75199774,64521.0,64520.0,1.0]
[1721241224738,1.90634731,64521.0,64520.0,1.0]
[1721241224959,1.91534731,64521.0,64520.0,1.001]
[1721241225180,2.22532331,64521.0,64520.0,1.001]
[1721241225976,2.22532331,64521.0,64520.0,1.002]
[1721241225977,2.25832331,64521.0,64520.0,1.002]
[1721241226555,2.24832331,64521.0,64520.0,1.001]
[1721241226763,2.26232331,64521.0,64520.0,1.002]
[1721241226970,2.25332331,64521.0,64520.0,1.001]
[1721241227375,2.26432331,64521.0,64520.0,1.001]
[1721241228023,2.26432331,64521.0,64520.0,1.0]
[1721241228425,2.27332331,64521.0,64520.0,1.001]
[1721241230638,2.25032331,64521.0,64520.0,1.001]
[1721241231653,1.94034731,64521.0,64520.0,1.001]
[1721241232527,1.78599774,64521.0,64520.0,1.001]
[1721241232984,1.77699774,64521.0,64520.0,1.0]
[1721241233454,1.75199774,64521.0,64520.0,1.0]
[1721241233769,1.62479774,64521.0,64520.0,1.0]
[1721241233977,1.16044,64521.0,64520.0,1.0]
[1721241234176,0.578964,64521.0,64520.0,1.0]
[1721241234439,0.586964,64521.0,64520.0,1.001]
[1721241234638,0.622964,64521.0,64520.0,1.001]
[1721241234842,0.586964,64521.0,64520.0,1.001]
[1721241235038,0.572964,64521.0,64520.0,1.001]
[1721241235334,0.008,64521.0,64520.0,1.1468]
[1721241235562,0.002794,64528.0,64520.0,1.1458]
[1721241235735,0.002794,64536.0,64524.0,0.15498]
[1721241235941,0.46304871,64540.0,64525.0,0.5198338]
[1721241235942,0.002794,64532.0,64525.0,0.5198338]
[1721241236157,0.157739,64539.0,64526.0,0.28365046]
[1721241236476,0.157739,64539.0,64525.0,0.391157]
[1721241236477,0.154947,64538.0,64527.0,0.12867546]
[1721241236603,0.154947,64538.0,64525.0,0.0812]
[1721241236604,0.002794,64537.0,64525.0,0.0812]
[1721241236806,0.002794,64537.0,64526.0,0.12867131]
[1721241237030,0.002794,64537.0,64527.0,0.12867131]
[1721241237292,0.002794,64537.0,64525.0,0.0812]
[1721241237447,0.002794,64537.0,64526.0,0.12867127]
[1721241237651,0.002794,64537.0,64527.0,0.12967127]
[1721241237995,0.102794,64537.0,64525.0,0.0812]
[1721241238172,0.102794,64537.0,64526.0,0.12867094]
[1721241238376,0.102794,64537.0,64527.0,0.12967094]
[1721241238377,0.107794,64537.0,64527.0,0.12967094]
[1721241238692,0.107794,64537.0,64527.0,0.001]
[1721241238693,0.112794,64537.0,64527.0,0.001]
[1721241238887,0.012794,64537.0,64529.0,0.154968]
[1721241239118,0.007794,64537.0,64531.0,0.154963]
[1721241239475,0.005,64537.0,64532.0,0.28362186]
[1721241239652,0.005,64537.0,64532.0,0.15496]
[1721241239653,0.01,64537.0,64532.0,0.15496]
[1721241239853,0.01,64537.0,64530.0,0.39054674]
[1721241240054,0.01,64537.0,64531.0,0.12865995]
[1721241240055,0.002794,64536.0,64531.0,0.12865995]
[1721241240256,0.005,64537.0,64532.0,0.12865995]
[1721241240482,0.005,64537.0,64530.0,0.39054674]
[1721241240483,0.01,64537.0,64533.0,0.12865995]
[1721241240720,0.154957,64534.0,64530.0,0.0812]
[1721241240924,0.38988979,64533.0,64532.0,0.001]
[1721241241270,0.154974,64527.0,64520.0,1.0603]
[1721241241470,0.309941,64529.0,64521.0,0.12868248]
[1721241241618,0.002794,64527.0,64521.0,0.12868248]
[1721241241846,0.002794,64527.0,64520.0,1.0603]
[1721241242018,0.002794,64527.0,64521.0,0.12868418]
[1721241242220,0.002794,64527.0,64520.0,1.0603]
[1721241242441,0.002794,64527.0,64521.0,0.12868422]
[1721241242745,0.002794,64527.0,64522.0,0.12868422]
[1721241242897,0.002794,64527.0,64521.0,0.004]
[1721241243735,0.002794,64527.0,64520.0,1.0603]
[1721241243942,0.002794,64527.0,64521.0,0.12868422]
[1721241244278,0.002794,64527.0,64520.0,1.0603]
[1721241244637,0.002794,64527.0,64521.0,0.12868422]
[1721241244834,0.002794,64527.0,64520.0,1.0603]
[1721241245043,0.002794,64527.0,64521.0,0.12868422]
[1721241245248,0.002794,64527.0,64520.0,1.0603]
[1721241245617,0.154985,64522.0,64520.0,1.0]
[1721241246170,0.309959,64525.0,64520.0,1.0]
[1721241246352,0.154983,64523.0,64520.0,1.0]
[1721241246552,0.464952,64523.0,64520.0,1.0]
[1721241247798,0.155985,64523.0,64520.0,1.002]
[1721241248006,0.154988,64521.0,64520.0,1.002924]
[1721241248180,0.77494,64521.0,64520.0,1.002924]
[1721241248405,0.154986,64522.0,64520.0,1.002924]
[1721241248606,0.154988,64521.0,64520.0,1.006924]
[1721241249109,0.464964,64521.0,64520.0,1.002924]
[1721241249478,0.465964,64521.0,64520.0,1.009924]
[1721241250708,0.465964,64521.0,64520.0,1.007924]